Workbook

Sheet Sheet1
A1: 贵州经贸职业技术学院 2019年公开招聘工作人员笔试、面试成绩汇总表及进入体检人员名单公示
A2: 准考证号 | B2: 姓名 | C2: 职位代码 | D2: 计划招聘数 | E2: 笔试成绩 | F2: 折算后笔试成绩（按百分制计算后占总成绩的50%） | G2: 面试成绩 | H2: 折算后面试成绩（占总成绩的50%） | I2: 总成绩 | J2: 排名 | K2: 备注
A3: 4252270304603 | B3: 刘莎 | C3: 01 | D3: 1 | E3: 200.00 | F3: =E3/3*0.5 -> 33.33 | G3: 88.2 | H3: =G3/2 -> 44.1 | I3: =F3+H3 -> 77.43 | J3: 1 | K3: 进入体检
A4: 4252270304510 | B4: 文搏 | C4: 01 | D4: 1 | E4: 200.00 | F4: =E4/3*0.5 -> 33.33 | G4: 82.6 | H4: =G4*0.5 -> 41.3 | I4: =F4+H4 -> 74.63
A5: 4252270304014 | B5: 姚彬彬 | C5: 01 | D5: 1 | E5: 196.00 | F5: =E5/3*0.5 -> 32.67 | G5: 0 | H5: =G5*0.5 -> 0 | I5: =F5+H5 -> 32.67
A6: 4252270302216 | B6: 李诗琪 | C6: 02 | D6: 1 | E6: 199.00 | F6: 33.17 | G6: 90.4 | H6: 45.2 | I6: 78.37 | J6: 1 | K6: 进入体检
A7: 4252270301119 | B7: 陈凯 | C7: 02 | D7: 1 | E7: 192.00 | F7: 32.00 | G7: 86.2 | H7: 43.1 | I7: 75.10
A8: 4252270300125 | B8: 马德泽 | C8: 02 | D8: 1 | E8: 194.00 | F8: 32.33 | G8: 84.8 | H8: 42.4 | I8: 74.73
A9: 4252270302330 | B9: 耿晓琴 | C9: 03 | D9: 1 | E9: 213.50 | F9: 35.58 | G9: 80.8 | H9: 40.4 | I9: 75.98 | J9: 1 | K9: 进入体检
A10: 4252270305008 | B10: 吴梦婷 | C10: 03 | D10: 1 | E10: 202.00 | F10: 33.67 | G10: 82.6 | H10: 41.3 | I10: 74.97
A11: 4252270301330 | B11: 吴天航 | C11: 03 | D11: 1 | E11: 195.50 | F11: 32.58 | G11: 0 | H11: 0 | I11: 32.58
A12: 4252270303708 | B12: 蒙潇潇 | C12: 04 | D12: 1 | E12: 195.50 | F12: 32.58 | G12: 87.8 | H12: 43.9 | I12: 76.48 | J12: 1 | K12: 进入体检 | M12: ·
A13: 4252270300617 | B13: 李敏玲 | C13: 04 | D13: 1 | E13: 192.00 | F13: 32.00 | G13: 84.6 | H13: 42.3 | I13: 74.30
A14: 4252270301002 | B14: 王冲 | C14: 04 | D14: 1 | E14: 195.00 | F14: 32.50 | G14: 0 | H14: 0 | I14: 32.50
A15: 4252270301822 | B15: 胡艺航 | C15: 05 | D15: 1 | E15: 190.00 | F15: 31.67 | G15: 92.6 | H15: 46.3 | I15: 77.97 | J15: 1 | K15: 进入体检
A16: 4252270301115 | B16: 高克璟 | C16: 05 | D16: 1 | E16: 185.50 | F16: 30.92 | G16: 90.2 | H16: 45.1 | I16: 76.02
A17: 4252270304230 | B17: 罗海曼 | C17: 05 | D17: 1 | E17: 187.00 | F17: 31.17 | G17: 83.8 | H17: 41.9 | I17: 73.07
A18: 4252270301614 | B18: 朱付勇 | C18: 06 | D18: 6 | E18: 176.50 | F18: 29.42 | G18: 93.8 | H18: 46.9 | I18: 76.32 | J18: 1 | K18: 进入体检
A19: 4252270302603 | B19: 邓国成 | C19: 06 | D19: 6 | E19: 166.50 | F19: 27.75 | G19: 95.2 | H19: 47.6 | I19: 75.35 | J19: 2 | K19: 进入体检
A20: 4252270300213 | B20: 余天世 | C20: 06 | D20: 6 | E20: 162.50 | F20: 27.08 | G20: 92.2 | H20: 46.1 | I20: 73.18 | J20: 3 | K20: 进入体检
A21: 4252270302523 | B21: 杨秀春 | C21: 06 | D21: 6 | E21: 157.50 | F21: 26.25 | G21: 92.2 | H21: 46.1 | I21: 72.35 | J21: 4 | K21: 进入体检
A22: 4252270302111 | B22: 罗海亚 | C22: 06 | D22: 6 | E22: 199.50 | F22: 33.25 | G22: 67.2 | H22: 33.6 | I22: 66.85 | J22: 5 | K22: 进入体检
A23: 4252270302515 | B23: 周静 | C23: 06 | D23: 6 | E23: 189.50 | F23: 31.58 | G23: 70.4 | H23: 35.2 | I23: 66.78 | J23: 6 | K23: 进入体检
A24: 4252270303618 | B24: 肖志伟 | C24: 06 | D24: 6 | E24: 165.00 | F24: 27.50 | G24: 77.4 | H24: 38.7 | I24: 66.20
A25: 4252270301618 | B25: 张学峰 | C25: 06 | D25: 6 | E25: 197.50 | F25: 32.92 | G25: 65.6 | H25: 32.8 | I25: 65.72
A26: 4252270300424 | B26: 雷涛 | C26: 06 | D26: 6 | E26: 184.00 | F26: 30.67 | G26: 67.4 | H26: 33.7 | I26: 64.37
A27: 4252270305622 | B27: 李富荣 | C27: 06 | D27: 6 | E27: 169.50 | F27: 28.25 | G27: 70.4 | H27: 35.2 | I27: 63.45
A28: 4252270304930 | B28: 王皓 | C28: 06 | D28: 6 | E28: 167.50 | F28: 27.92 | G28: 70.8 | H28: 35.4 | I28: 63.32
A29: 4252270303113 | B29: 赵满 | C29: 06 | D29: 6 | E29: 171.00 | F29: 28.50 | G29: 66.6 | H29: 33.3 | I29: 61.80
A30: 4252270301720 | B30: 王贵杨 | C30: 06 | D30: 6 | E30: 169.00 | F30: 28.17 | G30: 66.6 | H30: 33.3 | I30: 61.47
A31: 4252270303501 | B31: 王文武 | C31: 06 | D31: 6 | E31: 155.50 | F31: 25.92 | G31: 69.6 | H31: 34.8 | I31: 60.72
A32: 4252270302809 | B32: 杨华 | C32: 06 | D32: 6 | E32: 173.50 | F32: 28.92 | G32: 61 | H32: 30.5 | I32: 59.42
A33: 4252270304716 | B33: 黄娜 | C33: 06 | D33: 6 | E33: 167.00 | F33: 27.83 | G33: 61 | H33: 30.5 | I33: 58.33
A34: 4252270300921 | B34: 张颖 | C34: 06 | D34: 6 | E34: 156.50 | F34: 26.08 | G34: 64.2 | H34: 32.1 | I34: 58.18
A35: 4252270301902 | B35: 王举 | C35: 06 | D35: 6 | E35: 165.00 | F35: 27.50 | G35: 0 | H35: 0 | I35: 27.50
A36: 4252270304802 | B36: 卢韦霖 | C36: 07 | D36: 3 | E36: 201.50 | F36: 33.58 | G36: 92 | H36: 46 | I36: 79.58 | J36: 1 | K36: 进入体检
A37: 4252270301316 | B37: 罗梦然 | C37: 07 | D37: 3 | E37: 207.00 | F37: 34.50 | G37: 87.8 | H37: 43.9 | I37: 78.40 | J37: 2 | K37: 进入体检
A38: 4252270304323 | B38: 潘琳 | C38: 07 | D38: 3 | E38: 194.50 | F38: 32.42 | G38: 89.4 | H38: 44.7 | I38: 77.12 | J38: 3 | K38: 进入体检
A39: 4252270301820 | B39: 杨竣淇 | C39: 07 | D39: 3 | E39: 198.00 | F39: 33.00 | G39: 85.4 | H39: 42.7 | I39: 75.70
A40: 4252270300923 | B40: 莫缓唱 | C40: 07 | D40: 3 | E40: 198.00 | F40: 33.00 | G40: 83.4 | H40: 41.7 | I40: 74.70
A41: 4252270300726 | B41: 杨天慧 | C41: 07 | D41: 3 | E41: 175.50 | F41: 29.25 | G41: 83.8 | H41: 41.9 | I41: 71.15
A42: 4252270304101 | B42: 王丽 | C42: 07 | D42: 3 | E42: 178.50 | F42: 29.75 | G42: 81.4 | H42: 40.7 | I42: 70.45
A43: 4252270300818 | B43: 刘廷进 | C43: 07 | D43: 3 | E43: 184.00 | F43: 30.67 | G43: 78.2 | H43: 39.1 | I43: 69.77
A44: 4252270302512 | B44: 赵洪 | C44: 07 | D44: 3 | E44: 175.50 | F44: 29.25 | G44: 78.8 | H44: 39.4 | I44: 68.65
A45: 4252270303913 | B45: 余海浪 | C45: 08 | D45: 1 | E45: 179.50 | F45: 29.92 | G45: 82 | H45: 41 | I45: 70.92 | J45: 1 | K45: 进入体检
A46: 4252270302007 | B46: 韦兴凤 | C46: 08 | D46: 1 | E46: 157.00 | F46: 26.17 | G46: 80.6 | H46: 40.3 | I46: 66.47
A47: 4252270304210 | B47: 黄璐 | C47: 09 | D47: 2 | E47: 201.50 | F47: 33.58 | G47: 87.2 | H47: 43.6 | I47: 77.18 | J47: 1 | K47: 进入体检
A48: 4252270305416 | B48: 蒋春娥 | C48: 09 | D48: 2 | E48: 191.00 | F48: 31.83 | G48: 82.6 | H48: 41.3 | I48: 73.13 | J48: 2 | K48: 进入体检
A49: 4252270300404 | B49: 陈雪 | C49: 09 | D49: 2 | E49: 193.50 | F49: 32.25 | G49: 81.6 | H49: 40.8 | I49: 73.05
A50: 4252270305413 | B50: 刘莉 | C50: 09 | D50: 2 | E50: 191.50 | F50: 31.92 | G50: 79.4 | H50: 39.7 | I50: 71.62
A51: 4252270303502 | B51: 丁玲 | C51: 09 | D51: 2 | E51: 204.00 | F51: 34.00 | G51: 0 | H51: 0 | I51: 34.00
A52: 4252270302610 | B52: 胡茂 | C52: 09 | D52: 2 | E52: 196.50 | F52: 32.75 | G52: 0 | H52: 0 | I52: 32.75
A53: 4252270305006 | B53: 余雷蕾 | C53: 10 | D53: 1 | E53: 193.50 | F53: 32.25 | G53: 86.4 | H53: 43.2 | I53: 75.45 | J53: 1 | K53: 进入体检
A54: 4252270302822 | B54: 王丽 | C54: 10 | D54: 1 | E54: 161.50 | F54: 26.92 | G54: 0 | H54: 0 | I54: 26.92
A55: 4252270302509 | B55: 秦友敏 | C55: 10 | D55: 1 | E55: 123.50 | F55: 20.58 | G55: 0 | H55: 0 | I55: 20.58
A56: 4252270303929 | B56: 何映杭 | C56: 11 | D56: 10 | E56: 192.50 | F56: 32.08 | G56: 90 | H56: 45 | I56: 77.08 | J56: 1 | K56: 进入体检
A57: 4252270304911 | B57: 周松波 | C57: 11 | D57: 10 | E57: 184.00 | F57: 30.67 | G57: 90.6 | H57: 45.3 | I57: 75.97 | J57: 2 | K57: 进入体检
A58: 4252270302328 | B58: 张宏洲 | C58: 11 | D58: 10 | E58: 186.00 | F58: 31.00 | G58: 89.6 | H58: 44.8 | I58: 75.80 | J58: 3 | K58: 进入体检
A59: 4252270303711 | B59: 王方文 | C59: 11 | D59: 10 | E59: 185.00 | F59: 30.83 | G59: 87.6 | H59: 43.8 | I59: 74.63 | J59: 4 | K59: 进入体检
A60: 4252270303010 | B60: 石洁 | C60: 11 | D60: 10 | E60: 195.00 | F60: 32.50 | G60: 84 | H60: 42 | I60: 74.50 | J60: 5 | K60: 进入体检
A61: 4252270304315 | B61: 王伟 | C61: 11 | D61: 10 | E61: 190.50 | F61: 31.75 | G61: 85.4 | H61: 42.7 | I61: 74.45 | J61: 6 | K61: 进入体检
A62: 4252270304516 | B62: 马铭艳 | C62: 11 | D62: 10 | E62: 190.00 | F62: 31.67 | G62: 84.8 | H62: 42.4 | I62: 74.07 | J62: 7 | K62: 进入体检
A63: 4252270304605 | B63: 李颖怡 | C63: 11 | D63: 10 | E63: 188.00 | F63: 31.33 | G63: 85.2 | H63: 42.6 | I63: 73.93 | J63: 8 | K63: 进入体检
A64: 4252270305614 | B64: 熊胶 | C64: 11 | D64: 10 | E64: 208.50 | F64: 34.75 | G64: 78.2 | H64: 39.1 | I64: 73.85 | J64: 9 | K64: 进入体检
A65: 4252270304620 | B65: 屠光明 | C65: 11 | D65: 10 | E65: 191.50 | F65: 31.92 | G65: 82.8 | H65: 41.4 | I65: 73.32 | J65: 10 | K65: 进入体检
A66: 4252270305130 | B66: 陈雪 | C66: 11 | D66: 10 | E66: 191.50 | F66: 31.92 | G66: 82.4 | H66: 41.2 | I66: 73.12
A67: 4252270305315 | B67: 吴琦琦 | C67: 11 | D67: 10 | E67: 189.50 | F67: 31.58 | G67: 83 | H67: 41.5 | I67: 73.08
A68: 4252270305530 | B68: 张丹萍 | C68: 11 | D68: 10 | E68: 183.50 | F68: =E68/3*0.5 -> 30.58 | G68: 85 | H68: =G68*0.5 -> 42.5 | I68: =F68+H68 -> 73.08
A69: 4252270305719 | B69: 陈梅 | C69: 11 | D69: 10 | E69: 190.00 | F69: 31.67 | G69: 82 | H69: 41 | I69: 72.67
A70: 4252270301715 | B70: 吴永芳 | C70: 11 | D70: 10 | E70: 183.00 | F70: 30.50 | G70: 82.6 | H70: 41.3 | I70: 71.80
A71: 4252270303619 | B71: 周露 | C71: 11 | D71: 10 | E71: 189.50 | F71: 31.58 | G71: 80.4 | H71: 40.2 | I71: 71.78
A72: 4252270300729 | B72: 王恒娟 | C72: 11 | D72: 10 | E72: 187.00 | F72: 31.17 | G72: 81.2 | H72: 40.6 | I72: 71.77
A73: 4252270301009 | B73: 朱露琴 | C73: 11 | D73: 10 | E73: 182.50 | F73: 30.42 | G73: 82 | H73: 41 | I73: 71.42
A74: 4252270301005 | B74: 赵滢楠 | C74: 11 | D74: 10 | E74: 183.50 | F74: 30.58 | G74: 80.8 | H74: 40.4 | I74: 70.98
A75: 4252270302122 | B75: 杨全应 | C75: 11 | D75: 10 | E75: 184.00 | F75: 30.67 | G75: 80.6 | H75: 40.3 | I75: 70.97
A76: 4252270305210 | B76: 余慧 | C76: 11 | D76: 10 | E76: 188.00 | F76: 31.33 | G76: 78.8 | H76: 39.4 | I76: 70.73
A77: 4252270305125 | B77: 张素 | C77: 11 | D77: 10 | E77: 182.00 | F77: 30.33 | G77: 80 | H77: 40 | I77: 70.33
A78: 4252270305412 | B78: 徐廷江 | C78: 11 | D78: 10 | E78: 190.50 | F78: 31.75 | G78: 75.8 | H78: 37.9 | I78: 69.65
A79: 4252270300505 | B79: 江梨 | C79: 11 | D79: 10 | E79: 208.00 | F79: 34.67 | G79: 0 | H79: 0 | I79: 34.67
A80: 4252270303510 | B80: 刘宏涛 | C80: 11 | D80: 10 | E80: 206.50 | F80: 34.42 | G80: 0 | H80: 0 | I80: 34.42
A81: 4252270301416 | B81: 陈琴 | C81: 11 | D81: 10 | E81: 200.00 | F81: 33.33 | G81: 0 | H81: 0 | I81: 33.33
A82: 4252270300827 | B82: 杨寒霞 | C82: 11 | D82: 10 | E82: 192.50 | F82: 32.08 | G82: 0 | H82: 0 | I82: 32.08
A83: 4252270305019 | B83: 杨晨红 | C83: 11 | D83: 10 | E83: 189.00 | F83: 31.50 | G83: 0 | H83: 0 | I83: 31.50
A84: 4252270301802 | B84: 田洪福 | C84: 11 | D84: 10 | E84: 188.50 | F84: 31.42 | G84: 0 | H84: 0 | I84: 31.42
A85: 4252270301326 | B85: 柯黎顺 | C85: 11 | D85: 10 | E85: 186.00 | F85: 31.00 | G85: 0 | H85: 0 | I85: 31.00
A86: 4252270303723 | B86: 刘雷宏 | C86: 12 | D86: 5 | E86: 198.00 | F86: 33.00 | G86: 94.6 | H86: 47.3 | I86: 80.30 | J86: 1 | K86: 进入体检
A87: 4252270303804 | B87: 候万龙 | C87: 12 | D87: 5 | E87: 185.50 | F87: 30.92 | G87: 87 | H87: 43.5 | I87: 74.42 | J87: 2 | K87: 进入体检
A88: 4252270303521 | B88: 李雨山 | C88: 12 | D88: 5 | E88: 193.00 | F88: 32.17 | G88: 76.8 | H88: 38.4 | I88: 70.57 | J88: 3 | K88: 进入体检
A89: 4252270301801 | B89: 张洲 | C89: 12 | D89: 5 | E89: 186.00 | F89: 31.00 | G89: 77 | H89: 38.5 | I89: 69.50 | J89: 4 | K89: 进入体检
A90: 4252270300806 | B90: 周晓春 | C90: 12 | D90: 5 | E90: 170.00 | F90: 28.33 | G90: 81.8 | H90: 40.9 | I90: 69.23 | J90: 5 | K90: 进入体检
A91: 4252270304212 | B91: 罗甜 | C91: 12 | D91: 5 | E91: 196.50 | F91: 32.75 | G91: 71.2 | H91: 35.6 | I91: 68.35
A92: 4252270303821 | B92: 张立 | C92: 12 | D92: 5 | E92: 169.50 | F92: 28.25 | G92: 75.2 | H92: 37.6 | I92: 65.85
A93: 4252270303516 | B93: 杨瑞诗 | C93: 12 | D93: 5 | E93: 185.00 | F93: 30.83 | G93: 69.8 | H93: 34.9 | I93: 65.73
A94: 4252270305514 | B94: 邓佳琪 | C94: 12 | D94: 5 | E94: 183.00 | F94: 30.50 | G94: 70.4 | H94: 35.2 | I94: 65.70
A95: 4252270300926 | B95: 张丹丹 | C95: 12 | D95: 5 | E95: 175.00 | F95: 29.17 | G95: 70.6 | H95: 35.3 | I95: 64.47
A96: 4252270301109 | B96: 张皓 | C96: 12 | D96: 5 | E96: 187.00 | F96: 31.17 | G96: 65.2 | H96: 32.6 | I96: 63.77
A97: 4252270301428 | B97: 杨勇月 | C97: 12 | D97: 5 | E97: 175.50 | F97: 29.25 | G97: 68.8 | H97: 34.4 | I97: 63.65
A98: 4252270305705 | B98: 蒙宇 | C98: 12 | D98: 5 | E98: 181.00 | F98: 30.17 | G98: 62.8 | H98: 31.4 | I98: 61.57
A99: 4252270302028 | B99: 尚峻夷 | C99: 12 | D99: 5 | E99: 181.00 | F99: 30.17 | G99: 61.4 | H99: 30.7 | I99: 60.87
A100: 4252270305311 | B100: 罗绂江 | C100: 12 | D100: 5 | E100: 174.50 | F100: 29.08 | G100: 60 | H100: 30 | I100: 59.08
A101: 4252270303414 | B101: 张卓琳 | C101: 12 | D101: 5 | E101: 169.50 | F101: 28.25 | G101: 49.2 | H101: 24.6 | I101: 52.85
A102: 4252270302530 | B102: 欧阳健 | C102: 13 | D102: 3 | E102: 193.00 | F102: 32.17 | G102: 90.6 | H102: 45.3 | I102: 77.47 | J102: 1 | K102: 进入体检
A103: 4252270300226 | B103: 张云松 | C103: 13 | D103: 3 | E103: 189.00 | F103: 31.50 | G103: 89.4 | H103: 44.7 | I103: 76.20 | J103: 2 | K103: 进入体检
A104: 4252270302315 | B104: 胡俊杰 | C104: 13 | D104: 3 | E104: 201.00 | F104: 33.50 | G104: 82.6 | H104: 41.3 | I104: 74.80 | J104: 3 | K104: 进入体检
A105: 4252270302222 | B105: 罗劲松 | C105: 13 | D105: 3 | E105: 187.00 | F105: 31.17 | G105: 86.4 | H105: 43.2 | I105: 74.37
A106: 4252270304513 | B106: 陈立 | C106: 13 | D106: 3 | E106: 183.00 | F106: 30.50 | G106: 87.6 | H106: 43.8 | I106: 74.30
A107: 4252270301609 | B107: 侯星辰 | C107: 13 | D107: 3 | E107: 184.50 | F107: 30.75 | G107: 86.4 | H107: 43.2 | I107: 73.95
A108: 4252270302011 | B108: 吴小猛 | C108: 13 | D108: 3 | E108: 185.00 | F108: 30.83 | G108: 85.6 | H108: 42.8 | I108: 73.63
A109: 4252270304921 | B109: 马新毅 | C109: 13 | D109: 3 | E109: 189.50 | F109: 31.58 | G109: 82.8 | H109: 41.4 | I109: 72.98
A110: 4252270305701 | B110: 彭芳 | C110: 13 | D110: 3 | E110: 181.00 | F110: 30.17 | G110: 83 | H110: 41.5 | I110: 71.67
A111: 4252270302001 | B111: 王睿 | C111: 14 | D111: 3 | E111: 196.50 | F111: 32.75 | G111: 90 | H111: 45 | I111: 77.75 | J111: 1 | K111: 进入体检
A112: 4252270301319 | B112: 蔡中娥 | C112: 14 | D112: 3 | E112: 199.00 | F112: 33.17 | G112: 88.4 | H112: 44.2 | I112: 77.37 | J112: 2 | K112: 进入体检
A113: 4252270302311 | B113: 王福群 | C113: 14 | D113: 3 | E113: 201.00 | F113: 33.50 | G113: 83.4 | H113: 41.7 | I113: 75.20 | J113: 3 | K113: 进入体检
A114: 4252270300101 | B114: 吴飞阳 | C114: 14 | D114: 3 | E114: 191.00 | F114: 31.83 | G114: 85.6 | H114: 42.8 | I114: 74.63
A115: 4252270304528 | B115: 李婧 | C115: 14 | D115: 3 | E115: 183.50 | F115: 30.58 | G115: 81.2 | H115: 40.6 | I115: 71.18
A116: 4252270302627 | B116: 吴燕 | C116: 14 | D116: 3 | E116: 182.50 | F116: 30.42 | G116: 79.6 | H116: 39.8 | I116: 70.22
A117: 4252270303322 | B117: 王赟 | C117: 14 | D117: 3 | E117: 195.50 | F117: 32.58 | G117: 0 | H117: 0 | I117: 32.58
A118: 4252270304519 | B118: 陈启语 | C118: 14 | D118: 3 | E118: 191.00 | F118: 31.83 | G118: 0 | H118: 0 | I118: 31.83
A119: 4252270305521 | B119: 文雅琴 | C119: 14 | D119: 3 | E119: 182.50 | F119: 30.42 | G119: 0 | H119: 0 | I119: 30.42
A120: 4252270304404 | B120: 谷义杰 | C120: 15 | D120: 3 | E120: 211.50 | F120: 35.25 | G120: 89.6 | H120: 44.8 | I120: 80.05 | J120: 1 | K120: 进入体检
A121: 4252270303530 | B121: 陈玥 | C121: 15 | D121: 3 | E121: 197.00 | F121: 32.83 | G121: 91.2 | H121: 45.6 | I121: 78.43 | J121: 2 | K121: 进入体检
A122: 4252270303008 | B122: 吴吉 | C122: 15 | D122: 3 | E122: 194.50 | F122: 32.42 | G122: 87.2 | H122: 43.6 | I122: 76.02 | J122: 3 | K122: 进入体检
A123: 4252270301621 | B123: 唐盼盼 | C123: 15 | D123: 3 | E123: 193.50 | F123: 32.25 | G123: 86.8 | H123: 43.4 | I123: 75.65
A124: 4252270302127 | B124: 张婷婷 | C124: 15 | D124: 3 | E124: 193.50 | F124: 32.25 | G124: 86.8 | H124: 43.4 | I124: 75.65
A125: 4252270300325 | B125: 肖梅 | C125: 15 | D125: 3 | E125: 197.00 | F125: 32.83 | G125: 84.4 | H125: 42.2 | I125: 75.03
A126: 4252270302210 | B126: 刘静 | C126: 15 | D126: 3 | E126: 193.50 | F126: 32.25 | G126: 85.2 | H126: 42.6 | I126: 74.85
A127: 4252270305330 | B127: 吴安迪 | C127: 15 | D127: 3 | E127: 196.00 | F127: 32.67 | G127: 80.8 | H127: 40.4 | I127: 73.07
A128: 4252270302601 | B128: 王成海 | C128: 15 | D128: 3 | E128: 211.50 | F128: 35.25 | G128: 0 | H128: 0 | I128: 35.25
A129: 4252270304818 | B129: 王楠 | C129: 16 | D129: 1 | E129: 198.00 | F129: 33.00 | G129: 87.2 | H129: 43.6 | I129: 76.60 | J129: 1 | K129: 进入体检
A130: 4252270300727 | B130: 李涵 | C130: 16 | D130: 1 | E130: 190.00 | F130: 31.67 | G130: 88.4 | H130: 44.2 | I130: 75.87
A131: 4252270305517 | B131: 吴建秋 | C131: 16 | D131: 1 | E131: 192.50 | F131: 32.08 | G131: 85 | H131: 42.5 | I131: 74.58
A132: 4252270303015 | B132: 王林 | C132: 17 | D132: 1 | E132: 196.50 | F132: =E132/3*0.5 -> 32.75 | G132: 87.2 | H132: =G132*0.5 -> 43.6 | I132: =F132+H132 -> 76.35 | J132: 1 | K132: 进入体检
A133: 4252270301425 | B133: 杨通敏 | C133: 17 | D133: 1 | E133: 192.00 | F133: =E133/3*0.5 -> 32.00 | G133: 81.6 | H133: =G133*0.5 -> 40.8 | I133: =F133+H133 -> 72.80
A134: 4252270301605 | B134: 蔡恩培 | C134: 17 | D134: 1 | E134: 196.50 | F134: =E134/3*0.5 -> 32.75 | G134: 0 | H134: =G134*0.5 -> 0 | I134: =F134+H134 -> 32.75
A135: 4252270301406 | B135: 靳笑然 | C135: 18 | D135: 1 | E135: 213.50 | F135: =E135/3*0.5 -> 35.58 | G135: 84.8 | H135: =G135*0.5 -> 42.4 | I135: =F135+H135 -> 77.98 | J135: 1 | K135: 进入体检
A136: 4252270305708 | B136: 覃焕 | C136: 18 | D136: 1 | E136: 201.00 | F136: 33.50 | G136: 85.2 | H136: 42.6 | I136: 76.10
A137: 4252270305630 | B137: 侯晨晨 | C137: 18 | D137: 1 | E137: 194.00 | F137: 32.33 | G137: 0 | H137: 0 | I137: 32.33
A138: 4252270301510 | B138: 陈圆媛 | C138: 19 | D138: 1 | E138: 217.50 | F138: 36.25 | G138: 86 | H138: 43 | I138: 79.25 | J138: 1 | K138: 进入体检
A139: 4252270302814 | B139: 丁树文 | C139: 19 | D139: 1 | E139: 206.00 | F139: 34.33 | G139: 84 | H139: 42 | I139: 76.33
A140: 4252270301606 | B140: 罗绒 | C140: 19 | D140: 1 | E140: 184.50 | F140: 30.75 | G140: 89.6 | H140: 44.8 | I140: 75.55
A141: 4252270302715 | B141: 吴慧洁 | C141: 20 | D141: 2 | E141: 211.50 | F141: 35.25 | G141: 88.8 | H141: 44.4 | I141: 79.65 | J141: 1 | K141: 进入体检
A142: 4252270304224 | B142: 李幸 | C142: 20 | D142: 2 | E142: 216.00 | F142: 36.00 | G142: 86 | H142: 43 | I142: 79.00 | J142: 2 | K142: 进入体检
A143: 4252270304313 | B143: 叶杜鹃 | C143: 20 | D143: 2 | E143: 200.00 | F143: 33.33 | G143: 88.2 | H143: 44.1 | I143: 77.43
A144: 4252270300509 | B144: 龙如田 | C144: 20 | D144: 2 | E144: 195.50 | F144: 32.58 | G144: 85.8 | H144: 42.9 | I144: 75.48
A145: 4252270301702 | B145: 杨超 | C145: 20 | D145: 2 | E145: 196.00 | F145: 32.67 | G145: 82.6 | H145: 41.3 | I145: 73.97
A146: 4252270302621 | B146: 叶会星 | C146: 20 | D146: 2 | E146: 194.50 | F146: 32.42 | G146: 0 | H146: 0 | I146: 32.42
A147: 4252270303207 | B147: 唐倩 | C147: 21 | D147: 1 | E147: 184.50 | F147: 30.75 | G147: 92.4 | H147: 46.2 | I147: 76.95 | J147: 1 | K147: 进入体检
A148: 4252270304124 | B148: 张珂 | C148: 21 | D148: 1 | E148: 193.50 | F148: 32.25 | G148: 85.4 | H148: 42.7 | I148: 74.95
A149: 4252270304104 | B149: 孟思娇 | C149: 21 | D149: 1 | E149: 182.50 | F149: 30.42 | G149: 87.2 | H149: 43.6 | I149: 74.02
A150: 4252270304517 | B150: 王晨旭 | C150: 22 | D150: 1 | E150: 187.00 | F150: 31.17 | G150: 94.8 | H150: 47.4 | I150: 78.57 | J150: 1 | K150: 进入体检
A151: 4252270301311 | B151: 李可心 | C151: 22 | D151: 1 | E151: 188.00 | F151: 31.33 | G151: 86.2 | H151: 43.1 | I151: 74.43
A152: 4252270303524 | B152: 李琪 | C152: 22 | D152: 1 | E152: 181.00 | F152: 30.17 | G152: 84.4 | H152: 42.2 | I152: 72.37
A153: 4252270302710 | B153: 赵星铭 | C153: 22 | D153: 1 | E153: 181.00 | F153: 30.17 | G153: 0 | H153: 0 | I153: 30.17
A154: 4252270305429 | B154: 黎祖庆 | C154: 23 | D154: 3 | E154: 180.00 | F154: 30.00 | G154: 83.4 | H154: 41.7 | I154: 71.70 | J154: 1 | K154: 进入体检
A155: 4252270304219 | B155: 刘炼 | C155: 23 | D155: 3 | E155: 172.00 | F155: 28.67 | G155: 85.2 | H155: 42.6 | I155: 71.27 | J155: 2 | K155: 进入体检
A156: 4252270304325 | B156: 陆平 | C156: 23 | D156: 3 | E156: 157.50 | F156: 26.25 | G156: 85.6 | H156: 42.8 | I156: 69.05 | J156: 3 | K156: 进入体检
A157: 4252270304029 | B157: 吴小周 | C157: 23 | D157: 3 | E157: 157.00 | F157: 26.17 | G157: 80.8 | H157: 40.4 | I157: 66.57
A158: 4252270304705 | B158: 叶刚 | C158: 23 | D158: 3 | E158: 176.50 | F158: 29.42 | G158: 72.6 | H158: 36.3 | I158: 65.72
A159: 4252270303104 | B159: 郑婷 | C159: 23 | D159: 3 | E159: 159.00 | F159: 26.50 | G159: 75.8 | H159: 37.9 | I159: 64.40
A160: 4252270300801 | B160: 蔡培 | C160: 23 | D160: 3 | E160: 171.00 | F160: 28.50 | G160: 71.4 | H160: 35.7 | I160: 64.20
A161: 4252270302118 | B161: 何孝丹 | C161: 23 | D161: 3 | E161: 157.50 | F161: 26.25 | G161: 70.4 | H161: 35.2 | I161: 61.45
A162: 4252270303312 | B162: 付贤青 | C162: 23 | D162: 3 | E162: 179.50 | F162: 29.92 | G162: 0 | H162: 0 | I162: 29.92
A163: 4252270301412 | B163: 杨婷 | C163: 24 | D163: 3 | E163: 194.00 | F163: 32.33 | G163: 89.4 | H163: 44.7 | I163: 77.03 | J163: 1 | K163: 进入体检
A164: 4252270303808 | B164: 汤潇潇 | C164: 24 | D164: 3 | E164: 194.50 | F164: 32.42 | G164: 88 | H164: 44 | I164: 76.42 | J164: 2 | K164: 进入体检
A165: 4252270302417 | B165: 孔娜 | C165: 24 | D165: 3 | E165: 185.50 | F165: 30.92 | G165: 90.6 | H165: 45.3 | I165: 76.22 | J165: 3 | K165: 进入体检
A166: 4252270305116 | B166: 李淑娟 | C166: 24 | D166: 3 | E166: 177.50 | F166: 29.58 | G166: 87.2 | H166: 43.6 | I166: 73.18
A167: 4252270302114 | B167: 吴芳 | C167: 24 | D167: 3 | E167: 180.00 | F167: 30.00 | G167: 84.2 | H167: 42.1 | I167: 72.10
A168: 4252270305425 | B168: 肖美玲 | C168: 24 | D168: 3 | E168: 159.50 | F168: 26.58 | G168: 83.8 | H168: 41.9 | I168: 68.48
A169: 4252270301401 | B169: 罗菲菲 | C169: 24 | D169: 3 | E169: 162.50 | F169: 27.08 | G169: 82 | H169: 41 | I169: 68.08
A170: 4252270300207 | B170: 刘贵燕 | C170: 24 | D170: 3 | E170: 153.00 | F170: 25.50 | G170: 83 | H170: 41.5 | I170: 67.00
A171: 4252270304830 | B171: 冯满玉 | C171: 24 | D171: 3 | E171: 174.00 | F171: 29.00 | G171: 0 | H171: 0 | I171: 29.00
A172: 4252270304405 | B172: 吴倩 | C172: 25 | D172: 2 | E172: 192.00 | F172: 32.00 | G172: 83.6 | H172: 41.8 | I172: 73.80 | J172: 1 | K172: 进入体检
A173: 4252270304905 | B173: 郭瑞 | C173: 25 | D173: 2 | E173: 171.50 | F173: 28.58 | G173: 85.6 | H173: 42.8 | I173: 71.38 | J173: 2 | K173: 进入体检
A174: 4252270301224 | B174: 邹昌浪 | C174: 25 | D174: 2 | E174: 174.50 | F174: 29.08 | G174: 84.4 | H174: 42.2 | I174: 71.28
A175: 4252270300111 | B175: 唐梦 | C175: 25 | D175: 2 | E175: 154.50 | F175: 25.75 | G175: 86 | H175: 43 | I175: 68.75
A176: 4252270304613 | B176: 姜鹏 | C176: 27 | D176: 2 | E176: 173.50 | F176: 28.92 | G176: 90.2 | H176: 45.1 | I176: 74.02 | J176: 1 | K176: 进入体检
A177: 4252270305617 | B177: 赵兴平 | C177: 27 | D177: 2 | E177: 166.00 | F177: 27.67 | G177: 86.2 | H177: 43.1 | I177: 70.77 | J177: 2 | K177: 进入体检
A178: 4252270304917 | B178: 杨泽渊 | C178: 27 | D178: 2 | E178: 157.50 | F178: 26.25 | G178: 83.2 | H178: 41.6 | I178: 67.85
A179: 4252270304903 | B179: 张文 | C179: 28 | D179: 1 | E179: 179.00 | F179: 29.83 | G179: 86.2 | H179: 43.1 | I179: 72.93 | J179: 1 | K179: 进入体检
A180: 4252270301925 | B180: 魏兰兰 | C180: 28 | D180: 1 | E180: 178.50 | F180: 29.75 | G180: 0 | H180: 0 | I180: 29.75
